fUSD/lending_fUSD_20260127
["ID","MTS","AMOUNT","RATE_DAILY","PERIOD"]
[403811950,1769550618039,-266.05,0.00015034,2]
[403811951,1769550618090,-698.91,0.00015034,2]
[403811952,1769550618123,-964.96,0.00015034,2]
[403811953,1769550618157,-8070.09,0.00015044,2]
[403811954,1769550618260,-10000.01,0.00015044,2]
[403811955,1769550618420,-10000.01,0.00015044,2]
[403811956,1769550618565,-199.60290876,0.00015044,2]
[403811957,1769550621117,-167.39509096,0.00015044,2]
[403811958,1769550622715,-167.45274,0.00015044,2]
[403811960,1769550624220,-242.34040579,0.00015044,2]
[403811961,1769550624403,10000.01,0.00014944,2]
[403811962,1769550624427,3389.89587742,0.00014944,2]
[403811963,1769550629136,-288.79765623,0.00015044,2]
[403811964,1769550631185,-257.38341626,0.00015044,2]
[403811971,1769550631353,-2734.76506803,0.00015044,2]
[403811972,1769550631417,-3804.84,0.00015044,2]
[403811973,1769550631431,-1501.99056459,0.00015044,2]
[403811974,1769550631474,-550.25980868,0.00015044,2]
[403811975,1769550631485,-4067.03448011,0.00015044,2]
[403811976,1769550631497,-786.41044328,0.00015044,2]
[403811977,1769550631535,-476.68734053,0.00015044,2]
[403811978,1769550631548,-1178.1723805,0.00015044,2]
[403811979,1769550631559,-57584.74719482,0.00015044,2]
[403811980,1769550631569,-8233.14713424,0.00015044,2]
[403811981,1769550631580,-38472.58954434,0.00015044,2]
[403811982,1769550631591,-4253.8,0.00015044,2]
[403811983,1769550631602,-657.85661962,0.00015044,2]
[403811985,1769550631613,-344.58,0.00015044,2]
[403811988,1769550631624,-1783.43233148,0.00015044,2]
[403812132,1769550633229,-421.2389542,0.00015044,2]
[403812360,1769550637449,-1867.36133801,0.00015044,2]
[403812361,1769550637508,-7520.0,0.00015044,2]
[403812362,1769550637518,-580.23789574,0.00015044,2]
[403812363,1769550637567,-757.775,0.00015044,2]
[403812364,1769550637578,-1221.00880848,0.00015044,2]
[403812365,1769550637627,-3118.42965905,0.00015044,2]
[403812380,1769550639477,-954.55,0.00015044,2]
[403812381,1769550639490,-274.3663905,0.00015044,2]
[403812382,1769550639506,-701.61223502,0.00015044,2]
[403812383,1769550639556,-24.81704437,0.00015044,2]
[403812384,1769550639567,-847.34561743,0.00015044,2]
[403812385,1769550639606,-436051.47271196,0.00015044,2]
[403812386,1769550639616,-300.9974,0.00015044,2]
[403812387,1769550639625,-300.0,0.00015142,2]
[403812388,1769550639635,-300.0,0.00015142,2]
[403812389,1769550639645,-202.35883745,0.00015143,2]
[403812390,1769550639655,-500.0,0.00015143,2]
[403812391,1769550639665,-500.0,0.00015143,2]
[403812392,1769550639674,-500.0,0.00015143,2]
[403812393,1769550639683,-500.0,0.00015143,2]
[403812394,1769550639693,-500.0,0.00015143,2]
[403812395,1769550639702,-500.0,0.00015143,2]
[403812396,1769550639711,-2881.2238638,0.00015143,2]
[403812397,1769550639720,-500.0,0.00015143,2]
[403812398,1769550639730,-500.0,0.00015143,2]
[403812399,1769550639739,-500.0,0.00015143,2]
[403812400,1769550639749,-500.0,0.00015143,2]
[403812401,1769550639759,-345.61675063,0.00015143,2]
[403812402,1769550639768,-397.18460209,0.00015143,2]
[403812403,1769550639782,-314.09737343,0.00015143,2]
[403812404,1769550639792,-500.0,0.00015143,2]
[403812405,1769550639802,-1000.0,0.00015223,2]
[403812406,1769550639812,-150.00277855,0.00015233,2]
[403812407,1769550639822,-13389.90587733,0.00015272,2]
[403812408,1769550639831,-500.0,0.00015322,2]
[403812409,1769550639842,-500.0,0.00015322,2]
[403812411,1769550639851,-500.0,0.00015322,2]
[403812413,1769550639861,-500.0,0.00015322,2]
[403812415,1769550639870,-378.53453993,0.00015322,2]
[403812417,1769550639880,-500.0,0.00015322,2]
[403812419,1769550639890,-500.0,0.00015322,2]
[403812420,1769550639899,-500.0,0.00015322,2]
[403812423,1769550639910,-500.0,0.00015322,2]
[403812425,1769550639924,-500.0,0.00015322,2]
[403812427,1769550639933,-500.0,0.00015322,2]
[403812429,1769550639943,-500.0,0.00015322,2]
[403812431,1769550639953,-500.0,0.00015322,2]
[403812433,1769550639963,-500.0,0.00015322,2]
[403812435,1769550639973,-940.08,0.00015322,2]
[403812437,1769550639983,-297.05851949,0.00015581,2]
[403812441,1769550639993,-940.08,0.00015596,2]
[403812444,1769550640003,-13389.90587733,0.00015601,2]
[403812447,1769550640012,-3240.0,0.00015607,2]
[403812450,1769550640022,-29999.99,0.00015607,2]
[403812453,1769550640032,-1268.07,0.00015607,2]
[403812456,1769550640042,-151.0,0.00015693,2]
[403812459,1769550640052,-151.0,0.00015693,2]
[403812462,1769550640062,-151.0,0.00015696,2]
[403812464,1769550640071,-151.0,0.00015696,2]
[403812466,1769550640080,-2679.99,0.00015696,2]
[403812468,1769550640090,-9999.99,0.00015696,2]
[403812470,1769550640099,-500.0,0.00015702,2]
[403812472,1769550640109,-151.0,0.00015702,2]
[403812475,1769550640118,-151.0,0.00015702,2]
[403812477,1769550640128,-2531.6,0.00015775,2]
[403812479,1769550640137,-940.08,0.0001587,2]
[403812481,1769550640151,-1454.39,0.00015876,2]
[403812483,1769550640161,-1155.0,0.0001592,2]
[403812485,1769550640170,-13389.90587733,0.00015929,2]
[403812487,1769550640179,-369.0,0.00015974,2]
[403812489,1769550640188,-384.45580405,0.00015976,2]
[403812491,1769550640198,-498.0,0.00016006,2]
[403812493,1769550640207,-490.08113567,0.00016016,2]
[403812495,1769550640216,-212.33238102,0.00016016,2]
[403812497,1769550640227,-272.14,0.00016092,2]
[403812499,1769550640236,-151.0,0.00016113,2]
[403812501,1769550640245,-857.23,0.00016116,2]
[403812503,1769550640255,-13999.01,0.00016116,2]
[403812505,1769550640264,-56746.54,0.00016116,2]
[403812506,1769550640273,-5900.07,0.00016116,2]
[403812507,1769550640283,-999.99,0.00016116,2]
[403812508,1769550640292,-499.99,0.00016116,2]
[403812509,1769550640302,-1195.66,0.00016116,2]
[403812510,1769550640311,-9999.99,0.00016116,2]
[403812511,1769550640320,-150.99,0.00016116,2]
[403812512,1769550640329,-9999.99,0.00016116,2]
[403812513,1769550640339,-150.99,0.00016116,2]
[403812514,1769550640353,-9999.99,0.00016116,2]
[403812515,1769550640363,-299.99,0.00016116,4]
[403812516,1769550640375,-9999.99,0.00016116,2]
[403812517,1769550640385,-427.21,0.00016116,2]
[403812518,1769550640394,-9999.99,0.00016116,2]
[403812519,1769550640403,-514.32,0.00016116,2]
[403812520,1769550640414,-9999.99,0.00016116,2]
[403812521,1769550640423,-3696.67,0.00016116,2]
[403812522,1769550640434,-60353.39,0.00016116,2]
[403812523,1769550640445,-31531.48,0.00016116,2]
[403812524,1769550640455,-4999.99,0.00016116,2]
[403812525,1769550640465,-940.08,0.00016144,2]
[403812526,1769550640475,-510.0,0.00016263,2]
[403812527,1769550640485,-500.0,0.00016301,2]
[403812528,1769550640494,-150.0,0.00016301,2]
[403812529,1769550640504,-150.0,0.00016301,2]
[403812530,1769550640514,-500.0,0.00016301,2]
[403812531,1769550640525,-740.0,0.00016301,2]
[403812532,1769550640538,-500.0,0.00016301,2]
[403812533,1769550640548,-500.0,0.00016301,2]
[403812534,1769550640557,-500.0,0.00016301,2]
[403812535,1769550640568,-500.0,0.00016301,2]
[403812536,1769550640577,-150.0,0.00016301,2]
[403812537,1769550640587,-500.0,0.00016301,2]
[403812538,1769550640600,-150.0,0.00016301,2]
[403812539,1769550640609,-500.0,0.00016301,2]
[403812540,1769550640619,-150.0,0.00016301,2]
[403812541,1769550640628,-500.0,0.00016301,2]
[403812542,1769550640640,-500.0,0.00016301,2]
[403812543,1769550640649,-417.0,0.00016301,2]
[403812544,1769550640658,-444.0,0.00016301,2]
[403812545,1769550640668,-500.0,0.00016301,2]
[403812546,1769550640678,-500.0,0.00016301,2]
[403812547,1769550640687,-150.0,0.00016301,2]
[403812548,1769550640696,-500.0,0.00016301,2]
[403812549,1769550640706,-500.0,0.00016356,2]
[403812550,1769550640715,-225.73815935,0.00016356,2]
[403812551,1769550640728,-500.0,0.00016356,2]
[403812552,1769550640738,-740.0,0.00016356,2]
[403812553,1769550640747,-500.0,0.00016356,2]
[403812554,1769550640756,-500.0,0.00016356,2]
[403812555,1769550640766,-500.0,0.00016356,2]
[403812556,1769550640777,-500.0,0.00016356,2]
[403812557,1769550640786,-500.0,0.00016356,2]
[403812558,1769550640795,-500.0,0.00016356,2]
[403812559,1769550640805,-500.0,0.00016356,2]
[403812560,1769550640815,-500.0,0.00016356,2]
[403812561,1769550640824,-417.0,0.00016356,2]
[403812562,1769550640834,-444.0,0.00016356,2]
[403812563,1769550641332,-500.0,0.00016356,2]
[403812564,1769550641344,-500.0,0.00016356,2]
[403812565,1769550641355,-150.0,0.00016356,2]
[403812566,1769550641365,-500.0,0.00016356,2]
[403812567,1769550641375,-500.0,0.00016373,2]
[403812568,1769550641387,-500.0,0.00016373,2]
[403812569,1769550641396,-500.0,0.00016373,2]
[403812570,1769550641406,-500.0,0.00016373,2]
[403812571,1769550641416,-500.0,0.00016373,2]
[403812572,1769550641425,-500.0,0.00016373,2]
[403812573,1769550641436,-500.0,0.00016411,2]
[403812574,1769550641449,-500.0,0.00016411,2]
[403812575,1769550641459,-571.96088901,0.00016411,2]
[403812576,1769550641469,-500.0,0.00016411,2]
[403812577,1769550641479,-500.0,0.00016411,2]
[403812578,1769550641488,-740.0,0.00016411,2]
[403812579,1769550641498,-500.0,0.00016411,2]
[403812580,1769550641507,-500.0,0.00016411,2]
[403812581,1769550641517,-500.0,0.00016411,2]
[403812582,1769550641526,-500.0,0.00016411,2]
[403812583,1769550641535,-500.0,0.00016411,2]
[403812584,1769550641543,-417.0,0.00016411,2]
[403812585,1769550641552,-444.0,0.00016411,2]
[403812586,1769550641562,-173.31089418,0.00016411,2]
[403812587,1769550641572,-500.0,0.00016411,2]
[403812588,1769550641583,-251.98965372,0.00016411,2]
[403812589,1769550641593,-500.0,0.00016411,2]
[403812590,1769550641604,-940.08,0.00016418,2]
[403812591,1769550641614,-531.53923225,0.00016437,2]
[403812592,1769550641623,-2395.12,0.00016438,2]
[403812593,1769550641634,-2395.12,0.00016438,2]
[403812594,1769550641642,-2395.12,0.00016438,2]
[403812595,1769550641654,-2395.12,0.00016438,2]
[403812596,1769550641665,-2395.12,0.00016438,2]
[403812597,1769550641675,-2395.12,0.00016438,2]
[403812598,1769550641683,-2395.12,0.00016438,2]
[403812599,1769550641693,-2395.12,0.00016438,2]
[403812600,1769550641706,-2395.12,0.00016438,2]
[403812601,1769550641717,-2395.12,0.00016438,2]
[403812602,1769550641726,-2395.12,0.00016438,2]
[403812603,1769550641735,-2395.12,0.00016438,2]
[403812604,1769550641745,-2395.12,0.00016438,2]
[403812605,1769550641754,-2395.12,0.00016438,2]
[403812606,1769550641764,-2395.12,0.00016438,2]
[403812607,1769550641774,-2395.12,0.00016438,2]
[403812608,1769550641783,-2395.12,0.00016438,2]
[403812609,1769550641793,-2395.12,0.00016438,2]
[403812610,1769550641802,-2395.12,0.00016438,2]
[403812611,1769550641812,-2395.12,0.00016438,2]
[403812612,1769550641821,-2395.12,0.00016438,2]
[403812613,1769550641832,-2395.12,0.00016438,2]
[403812614,1769550641841,-2395.12,0.00016438,2]
[403812615,1769550641852,-2395.18309839,0.00016438,2]
[403812616,1769550641861,-542.13465711,0.00016438,2]
[403812617,1769550641870,-500.0,0.00016438,2]
[403812618,1769550641880,-575.71176963,0.00016438,2]
[403812619,1769550641889,-608.4253297,0.00016438,2]
[403812620,1769550641900,-608.4253297,0.00016438,2]
[403812621,1769550641912,-608.4253297,0.00016438,2]
[403812622,1769550641925,-608.4253297,0.00016438,2]
[403812623,1769550641938,-608.4253297,0.00016438,2]
[403812624,1769550641947,-608.4253297,0.00016438,2]
[403812625,1769550641958,-608.4253297,0.00016438,2]
[403812626,1769550641969,-608.4253297,0.00016438,2]
[403812627,1769550641978,-608.4253297,0.00016438,2]
[403812628,1769550641988,-608.4253297,0.00016438,2]
[403812629,1769550641997,-608.4253297,0.00016438,2]
[403812630,1769550642007,-608.4253297,0.00016438,2]
[403812631,1769550642017,-608.4253297,0.00016438,2]
[403812632,1769550642027,-608.4253297,0.00016438,2]
[403812633,1769550642036,-608.4253297,0.00016438,2]
[403812634,1769550642046,-608.4253297,0.00016438,2]
[403812635,1769550642055,-608.4253297,0.00016438,2]
[403812636,1769550642065,-608.4253297,0.00016438,2]
[403812637,1769550642074,-608.4253297,0.00016438,2]
[403812638,1769550642084,-608.4253297,0.00016438,2]
[403812639,1769550642097,-608.4253297,0.00016438,2]
[403812640,1769550642106,-608.4253297,0.00016438,2]
[403812641,1769550642117,-608.4253297,0.00016438,2]
[403812642,1769550642126,-608.4253297,0.00016438,2]
[403812643,1769550642136,-608.4253297,0.00016438,2]
[403812644,1769550642146,-608.4253297,0.00016438,2]
[403812645,1769550642155,-608.4253297,0.00016438,2]
[403812646,1769550642164,-608.4253297,0.00016438,2]
[403812647,1769550642173,-608.4253297,0.00016438,2]
[403812648,1769550642182,-608.4253297,0.00016438,2]
[403812649,1769550642191,-608.4253297,0.00016438,2]
[403812650,1769550642201,-608.4253297,0.00016438,2]
[403812651,1769550642210,-608.4253297,0.00016438,2]
[403812653,1769550642219,-608.4253297,0.00016438,2]
[403812654,1769550642228,-608.4253297,0.00016438,2]
[403812655,1769550642238,-608.4253297,0.00016438,2]
[403812656,1769550642247,-608.4253297,0.00016438,2]
[403812657,1769550642256,-608.4253297,0.00016438,2]
[403812659,1769550642265,-608.4253297,0.00016438,2]
[403812661,1769550642274,-608.4253297,0.00016438,2]
[403812663,1769550642283,-608.4253297,0.00016438,2]
[403812665,1769550642292,-608.4253297,0.00016438,2]
[403812667,1769550642302,-608.4253297,0.00016438,2]
[403812668,1769550642311,-608.4253297,0.00016438,2]
[403812669,1769550642321,-608.4253297,0.00016438,2]
[403812671,1769550642330,-608.4253297,0.00016438,2]
[403812672,1769550642339,-608.4253297,0.00016438,2]
[403812673,1769550642350,-608.4253297,0.00016438,2]
[403812674,1769550642360,-608.4253297,0.00016438,2]
[403812675,1769550642369,-608.4253297,0.00016438,2]
[403812676,1769550642379,-606.78093691,0.00016438,2]
[403812679,1769550642387,-606.78093691,0.00016438,2]
[403812681,1769550642397,-606.78093691,0.00016438,2]
[403812683,1769550642406,-606.78093691,0.00016438,2]
[403812684,1769550642416,-606.78093691,0.00016438,2]
[403812685,1769550642425,-606.78093691,0.00016438,2]
[403812686,1769550642434,-606.78093691,0.00016438,2]
[403812687,1769550642443,-606.78093691,0.00016438,2]
[403812688,1769550642452,-606.78093691,0.00016438,2]
[403812689,1769550642462,-606.78093691,0.00016438,2]
[403812690,1769550642471,-606.78093691,0.00016438,2]
[403812691,1769550642480,-606.78093691,0.00016438,2]
[403812692,1769550642490,-606.78093691,0.00016438,2]
[403812693,1769550642499,-606.78093691,0.00016438,2]
[403812694,1769550642508,-606.78093691,0.00016438,2]
[403812695,1769550642518,-606.78093691,0.00016438,2]
[403812696,1769550642528,-606.78093691,0.00016438,2]
[403812697,1769550642537,-606.78093691,0.00016438,2]
[403812698,1769550642547,-606.78093691,0.00016438,2]
[403812699,1769550642556,-606.78093691,0.00016438,2]
[403812700,1769550642565,-606.78093691,0.00016438,2]
[403812701,1769550642574,-606.78093691,0.00016438,2]
[403812702,1769550642583,-606.78093691,0.00016438,2]
[403812703,1769550642592,-606.78093691,0.00016438,2]
[403812704,1769550642602,-606.78093691,0.00016438,2]
[403812705,1769550642611,-606.78093691,0.00016438,2]
[403812706,1769550642620,-606.78093691,0.00016438,2]
[403812707,1769550642630,-606.78093691,0.00016438,2]
[403812708,1769550642639,-606.78093691,0.00016438,2]
[403812709,1769550642648,-606.78093691,0.00016438,2]
[403812710,1769550642658,-606.78093691,0.00016438,2]
[403812711,1769550642667,-609.18879775,0.00016438,2]
[403812712,1769550642676,-609.18879775,0.00016438,2]
[403812713,1769550642685,-609.18879775,0.00016438,2]
[403812714,1769550642694,-609.18879775,0.00016438,2]
[403812715,1769550642704,-609.18879775,0.00016438,2]
[403812716,1769550642713,-609.18879775,0.00016438,2]
[403812717,1769550642723,-609.18879774,0.00016438,2]
[403812718,1769550642732,-500.0,0.00016438,2]
[403812719,1769550642742,-500.0,0.00016465,2]
[403812720,1769550642752,-500.0,0.00016465,2]
[403812721,1769550642762,-500.0,0.00016465,2]
[403812722,1769550642771,-500.0,0.00016465,2]
[403812723,1769550642781,-740.0,0.00016465,2]
[403812724,1769550642791,-465.49006321,0.00016465,2]
[403812725,1769550642800,-500.0,0.00016465,2]
[403812726,1769550642809,-500.0,0.00016465,2]
[403812727,1769550642819,-500.0,0.00016465,2]
[403812728,1769550642828,-500.0,0.00016465,2]
[403812729,1769550642838,-417.0,0.00016465,2]
[403812730,1769550642847,-444.0,0.00016465,2]
[403812731,1769550642857,-500.0,0.00016465,2]
[403812732,1769550642866,-500.0,0.00016465,2]
[403812733,1769550642876,-200.0,0.0001647,2]
[403812734,1769550642885,-500.0,0.00016493,2]
[403812735,1769550642895,-12462.69,0.00016499,2]
[403812736,1769550642904,-500.0,0.0001652,2]
[403812737,1769550642913,-500.0,0.0001652,2]
[403812738,1769550642923,-500.0,0.0001652,2]
[403812739,1769550642938,-500.0,0.0001652,2]
[403812740,1769550642947,-740.0,0.0001652,2]
[403812741,1769550642959,-500.0,0.0001652,2]
[403812742,1769550642971,-500.0,0.0001652,2]
[403812743,1769550642982,-500.0,0.0001652,2]
[403812744,1769550642991,-500.0,0.0001652,2]
[403812745,1769550643003,-417.0,0.0001652,2]
[403812746,1769550643012,-444.0,0.0001652,2]
[403812747,1769550643022,-500.0,0.0001652,2]
[403812748,1769550643031,-500.0,0.0001652,2]
[403812749,1769550643041,-1680.0,0.00016547,2]
[403812750,1769550643050,-500.0,0.00016548,2]
[403812751,1769550643059,-500.0,0.00016571,2]
[403812752,1769550643069,-500.0,0.00016575,2]
[403812753,1769550643078,-265.49389154,0.00016575,2]
[403812754,1769550643088,-500.0,0.00016575,2]
[403812755,1769550643097,-500.0,0.00016575,2]
[403812756,1769550643106,-740.0,0.00016575,2]
[403812757,1769550643115,-500.0,0.00016575,2]
[403812758,1769550643125,-500.0,0.00016575,2]
[403812759,1769550643134,-500.0,0.00016575,2]
[403812760,1769550643144,-500.0,0.00016575,2]
[403812761,1769550643153,-417.0,0.00016575,2]
[403812762,1769550643163,-444.0,0.00016575,2]
[403812763,1769550643173,-500.0,0.00016575,2]
[403812764,1769550643183,-500.0,0.00016575,2]
[403812765,1769550643193,-500.0,0.00016602,2]
[403812766,1769550643202,-500.0,0.00016607,2]
[403812767,1769550643212,-150.00277855,0.00016608,2]
[403812768,1769550643221,-500.0,0.0001663,2]
[403812769,1769550643231,-500.0,0.0001663,2]
[403812770,1769550643240,-500.0,0.0001663,2]
[403812771,1769550643249,-740.0,0.0001663,2]
[403812772,1769550643259,-500.0,0.0001663,2]
[403812773,1769550643268,-399.05102027,0.0001663,2]
[403812774,1769550643278,-500.0,0.0001663,2]
[403812775,1769550643287,-500.0,0.0001663,2]
[403812776,1769550643300,-417.0,0.0001663,2]
[403812777,1769550643311,-444.0,0.0001663,2]
[403812778,1769550643320,-500.0,0.0001663,2]
[403812779,1769550643329,-500.0,0.0001663,2]
[403812780,1769550643338,-5000.0,0.00016656,2]
[403812781,1769550643348,-193.0,0.00016656,2]
[403812782,1769550643357,-300.0,0.00016656,2]
[403812783,1769550643367,-200.0,0.00016656,2]
[403812784,1769550643377,-250.0,0.00016656,2]
[403812785,1769550643387,-195.0,0.00016656,2]
[403812786,1769550643397,-2500.0,0.00016656,2]
[403812787,1769550643407,-600.0,0.00016656,2]
[403812788,1769550643417,-300.0,0.00016656,2]
[403812789,1769550643426,-250.0,0.00016656,2]
[403812790,1769550643435,-500.0,0.00016657,2]
[403812791,1769550643444,-500.0,0.00016685,2]
[403812792,1769550643454,-500.0,0.00016685,2]
[403812793,1769550643465,-500.0,0.00016685,2]
[403812794,1769550643474,-740.0,0.00016685,2]
[403812795,1769550643484,-500.0,0.00016685,2]
[403812796,1769550643494,-500.0,0.00016685,2]
[403812797,1769550643505,-500.0,0.00016685,2]
[403812798,1769550643515,-417.0,0.00016685,2]
[403812799,1769550643525,-444.0,0.00016685,2]
[403812800,1769550643535,-500.0,0.00016685,2]
[403812801,1769550643544,-500.0,0.00016685,2]
[403812802,1769550643554,-940.08,0.00016692,2]
[403812803,1769550643564,-500.0,0.00016712,2]
[403812804,1769550643575,-500.0,0.00016739,2]
[403812805,1769550643585,-500.0,0.00016739,2]
[403812806,1769550643595,-740.0,0.00016739,2]
[403812807,1769550643606,-500.0,0.00016739,2]
[403812808,1769550643617,-500.0,0.00016739,2]
[403812809,1769550643626,-500.0,0.00016739,2]
[403812810,1769550643637,-500.0,0.00016739,2]
[403812811,1769550643647,-417.0,0.00016739,2]
[403812812,1769550643658,-444.0,0.00016739,2]
[403812813,1769550643668,-500.0,0.00016739,2]
[403812814,1769550643678,-500.0,0.00016739,2]
[403812815,1769550643687,-500.0,0.00016767,2]
[403812816,1769550643697,-500.0,0.00016794,2]
[403812817,1769550643706,-500.0,0.00016794,2]
[403812818,1769550643715,-150.0,0.00016794,2]
[403812819,1769550643726,-150.0,0.00016794,2]
[403812820,1769550643736,-150.0,0.00016794,2]
[403812821,1769550643746,-213.19994559,0.00016794,2]
[403812822,1769550643755,-150.0,0.00016794,2]
[403812823,1769550643765,-500.0,0.00016794,2]
[403812824,1769550643774,-150.0,0.00016794,2]
[403812825,1769550643785,-243.9850094,0.00016794,2]
[403812826,1769550643794,-150.0,0.00016794,2]
[403812827,1769550643804,-150.0,0.00016794,2]
[403812828,1769550643814,-150.0,0.00016794,2]
[403812829,1769550643824,-150.0,0.00016794,2]
[403812830,1769550643834,-500.0,0.00016794,2]
[403812831,1769550643843,-150.0,0.00016794,2]
[403812832,1769550643852,-202.67953144,0.00016794,2]
[403812833,1769550643862,-500.0,0.00016794,2]
[403812834,1769550643873,-500.0,0.00016794,2]
[403812835,1769550643884,-740.0,0.00016794,2]
[403812836,1769550643894,-500.0,0.00016794,2]
[403812837,1769550643904,-500.0,0.00016794,2]
[403812838,1769550643915,-500.0,0.00016794,2]
[403812839,1769550643928,-500.0,0.00016794,2]
[403812840,1769550643939,-417.0,0.00016794,2]
[403812841,1769550643949,-444.0,0.00016794,2]
[403812842,1769550643959,-500.0,0.00016794,2]
[403812843,1769550643970,-500.0,0.00016794,2]
[403812844,1769550643980,-500.0,0.00016822,2]
[403812845,1769550643992,-500.0,0.00016849,2]
[403812846,1769550644004,-500.0,0.00016849,2]
[403812847,1769550644014,-150.0,0.00016849,2]
[403812848,1769550644024,-150.19824857,0.00016849,2]
[403812849,1769550644033,-150.0,0.00016849,2]
[403812850,1769550644042,-150.93589511,0.00016849,2]
[403812851,1769550644052,-500.0,0.00016849,2]
[403812852,1769550644061,-150.0,0.00016849,2]
[403812853,1769550644070,-150.0,0.00016849,2]
[403812854,1769550644079,-500.0,0.00016849,2]
[403812855,1769550644089,-150.0,0.00016849,2]
[403812856,1769550644100,-500.0,0.00016849,2]
[403812857,1769550644110,-500.0,0.00016849,2]
[403812858,1769550644121,-740.0,0.00016849,2]
[403812859,1769550644131,-500.0,0.00016849,2]
[403812860,1769550644141,-500.0,0.00016849,2]
[403812861,1769550644150,-500.0,0.00016849,2]
[403812862,1769550644160,-500.0,0.00016849,2]
[403812863,1769550644169,-417.0,0.00016849,2]
[403812864,1769550644178,-444.0,0.00016849,2]
[403812865,1769550644189,-500.0,0.00016849,2]
[403812866,1769550644199,-500.0,0.00016849,2]
[403812867,1769550644210,-500.0,0.00016876,2]
[403812868,1769550644220,-413.81245521,0.00016894,2]
[403812869,1769550644229,-500.0,0.00016904,2]
[403812870,1769550644238,-150.0,0.00016904,2]
[403812871,1769550644248,-500.0,0.00016904,2]
[403812872,1769550644258,-240.41327915,0.00016904,2]
[403812873,1769550644268,-500.0,0.00016904,2]
[403812874,1769550644277,-150.0,0.00016904,2]
[403812875,1769550644287,-200.0,0.00016904,2]
[403812876,1769550644299,-401.7333692,0.00016904,2]
[403812877,1769550644309,-150.0,0.00016904,2]
[403812878,1769550644320,-500.0,0.00016904,2]
[403812879,1769550644330,-740.0,0.00016904,2]
[403812880,1769550644340,-500.0,0.00016904,2]
[403812882,1769550644350,-500.0,0.00016904,2]
[403812884,1769550644359,-500.0,0.00016904,2]
[403812886,1769550644370,-381.51596019,0.00016904,2]
[403812887,1769550644380,-500.0,0.00016904,2]
[403812888,1769550644390,-417.0,0.00016904,2]
[403812889,1769550644400,-444.0,0.00016904,2]
[403812890,1769550644411,-500.0,0.00016904,2]
[403812891,1769550644423,-511.21504498,0.00016904,2]
[403812892,1769550644434,-561.30412969,0.00016921,2]
[403812893,1769550644443,-500.0,0.00016921,2]
[403812894,1769550644454,-500.0,0.00016921,2]
[403812895,1769550644464,-1000.44164958,0.00016921,2]
[403812896,1769550644475,-687.78066829,0.00016921,2]
[403812897,1769550644487,-500.0,0.00016931,2]
[403812898,1769550644498,-500.0,0.00016958,2]
[403812899,1769550644508,-150.0,0.00016958,2]
[403812900,1769550644519,-500.0,0.00016958,2]
[403812901,1769550644530,-150.0,0.00016958,2]
[403812902,1769550644539,-150.0,0.00016958,2]
[403812903,1769550644550,-201.72695087,0.00016958,2]
[403812904,1769550644560,-527.26751797,0.00016959,2]
[403812905,1769550644570,-740.0,0.00016959,2]
[403812906,1769550644580,-500.0,0.00016959,2]
[403812907,1769550644589,-500.0,0.00016959,2]
[403812908,1769550644599,-393.00645443,0.00016959,2]
[403812909,1769550644608,-500.0,0.00016959,2]
[403812910,1769550644620,-417.0,0.00016959,2]